fUSD/lending_fUSD_20250225
["ID","MTS","AMOUNT","RATE_DAILY","PERIOD"]
[354419281,1740480646489,-500.0,0.00041369,2]
[354419283,1740480646498,-500.0,0.00041369,2]
[354419285,1740480646507,-500.0,0.00041369,2]
[354419287,1740480646516,-500.0,0.00041369,2]
[354419289,1740480646524,-1053.6,0.00041369,2]
[354419291,1740480646533,-500.0,0.00041369,2]
[354419292,1740480646543,-500.0,0.00041369,2]
[354419293,1740480646552,-500.0,0.00041369,2]
[354419294,1740480646561,-374.87,0.00041369,2]
[354419295,1740480646570,-500.0,0.00041369,2]
[354419296,1740480646579,-500.0,0.00041369,2]
[354419297,1740480646588,-600.51,0.00041369,2]
[354419298,1740480646597,-185.87,0.00041369,2]
[354419299,1740480646608,-500.0,0.00041369,2]
[354419301,1740480646618,-500.0,0.00041369,2]
[354419303,1740480646628,-500.0,0.00041369,2]
[354419305,1740480646637,-593.15,0.00041369,2]
[354419307,1740480646647,-500.0,0.00041369,2]
[354419309,1740480646657,-500.0,0.00041369,2]
[354419311,1740480646666,-400.82,0.00041369,2]
[354419313,1740480646675,-500.0,0.00041369,2]
[354419315,1740480646684,-500.0,0.00041369,2]
[354419317,1740480646695,-500.0,0.00041369,2]
[354419319,1740480646705,-500.0,0.00041369,2]
[354419321,1740480646715,-500.0,0.00041369,2]
[354419323,1740480646724,-500.0,0.00041369,2]
[354419325,1740480646733,-500.0,0.00041369,2]
[354419327,1740480646742,-550.94031138,0.00041369,2]
[354419329,1740480646751,-500.0,0.00041369,2]
[354419331,1740480646760,-500.0,0.00041369,2]
[354419333,1740480646769,-500.0,0.00041369,2]
[354419335,1740480646779,-500.0,0.00041369,2]
[354419337,1740480646788,-500.0,0.00041369,2]
[354419339,1740480646798,-515.34,0.00041369,2]
[354419341,1740480646807,-500.0,0.00041369,2]
[354419343,1740480646816,-500.0,0.00041369,2]
[354419345,1740480646825,-500.0,0.00041369,2]
[354419346,1740480646834,-500.0,0.00041369,2]
[354419347,1740480646843,-500.0,0.00041369,2]
[354419348,1740480646853,-522.00188937,0.00041369,2]
[354419349,1740480646862,-500.0,0.00041369,2]
[354419350,1740480646871,-515.65,0.00041369,2]
[354419351,1740480646881,-501.07621768,0.00041369,2]
[354419352,1740480646891,-507.94913592,0.00041369,2]
[354419353,1740480646900,-500.0,0.00041369,2]
[354419354,1740480646910,-500.0,0.00041369,2]
[354419355,1740480646919,-500.0,0.00041369,2]
[354419356,1740480646928,-500.72907383,0.00041369,2]
[354419357,1740480646943,-0.54120679,0.00041369,2]
[354419358,1740480646952,-257.82631129,0.00041369,2]
[354419359,1740480646961,-135.56259625,0.00041369,2]
[354419362,1740480646973,-364.43740375,0.00041369,2]
[354419364,1740480646981,-500.0,0.00041369,2]
[354419366,1740480646991,-500.0,0.00041369,2]
[354419367,1740480647001,-500.0,0.00041369,2]
[354419369,1740480647011,-157.58694009,0.00041369,2]
[354419372,1740480647024,-342.41305991,0.00041369,2]
[354419374,1740480647033,-500.0,0.00041369,2]
[354419376,1740480647043,-500.0,0.00041369,2]
[354419378,1740480647052,-508.86766481,0.00041369,2]
[354419380,1740480647062,-500.0,0.00041369,2]
[354419382,1740480647072,-648.09834845,0.00041369,2]
[354419384,1740480647082,-500.0,0.00041369,2]
[354419386,1740480647090,-500.0,0.00041369,2]
[354419388,1740480647105,-500.0,0.00041369,2]
[354419390,1740480647115,-500.0,0.00041369,2]
[354419392,1740480647124,-514.26096884,0.00041369,2]
[354419394,1740480647133,-500.0,0.00041369,2]
[354419395,1740480647143,-427.6614904,0.00041369,2]
[354419398,1740480647155,-400.3085096,0.00041369,2]
[354419400,1740480647164,-275.21,0.00041369,2]
[354419402,1740480647173,-500.0,0.00041369,2]
[354419404,1740480647183,-500.0,0.00041369,2]
[354419406,1740480647193,-500.0,0.00041369,2]
[354419408,1740480647202,-500.0,0.00041369,2]
[354419410,1740480647211,-500.0,0.00041369,2]
[354419412,1740480647220,-1030.54,0.00041369,2]
[354419414,1740480647229,-500.0,0.00041369,2]
[354419416,1740480647238,-117.40760126,0.00041369,2]
[354419428,1740480647367,-150.0,0.0004071,8]
[354419430,1740480647377,-382.59239874,0.00041369,2]
[354419432,1740480647386,-500.0,0.00041369,2]
[354419434,1740480647395,-500.0,0.00041369,2]
[354419436,1740480647404,-500.0,0.00041369,2]
[354419438,1740480647414,-500.0,0.00041369,2]
[354419440,1740480647423,-500.0,0.00041369,2]
[354419442,1740480647432,-377.85212963,0.00041369,2]
[354419444,1740480647442,-599.81,0.00041369,2]
[354419446,1740480647451,-500.0,0.00041369,2]
[354419448,1740480647460,-500.0,0.00041369,2]
[354419450,1740480647469,-500.0,0.00041369,2]
[354419452,1740480647479,-640.14,0.00041369,2]
[354419454,1740480647488,-500.0,0.00041369,2]
[354419456,1740480647497,-500.0,0.00041369,2]
[354419458,1740480647507,-406.08,0.00041369,2]
[354419460,1740480647516,-500.0,0.00041369,2]
[354419462,1740480647525,-315.39,0.00041369,2]
[354419463,1740480647534,-500.0,0.00041369,2]
[354419465,1740480647543,-500.0,0.00041369,2]
[354419467,1740480647552,-500.0,0.00041369,2]
[354419469,1740480647562,-500.0,0.00041369,2]
[354419471,1740480647571,-500.0,0.00041369,2]
[354419473,1740480647581,-500.0,0.00041369,2]
[354419475,1740480647591,-500.0,0.00041369,2]
[354419477,1740480647600,-419.81010089,0.00041369,2]
[354419479,1740480647611,-501.4975,0.00041369,2]
[354419481,1740480647620,-633.7,0.00041369,2]
[354419483,1740480647629,-500.0,0.00041369,2]
[354419485,1740480647639,-276.1005683,0.00041369,2]
[354419487,1740480647648,-500.0,0.00041369,2]
[354419489,1740480647658,-500.0,0.00041369,2]
[354419491,1740480647667,-179.01671214,0.00041369,2]
[354419493,1740480647677,-162.87,0.00041369,2]
[354419495,1740480647686,-500.0,0.00041369,2]
[354419497,1740480647695,-424.34,0.00041369,2]
[354419499,1740480647704,-500.0,0.00041369,2]
[354419501,1740480647715,-500.0,0.00041369,2]
[354419503,1740480647724,-500.0,0.00041369,2]
[354419505,1740480647733,-500.0,0.00041369,2]
[354419506,1740480647742,-500.0,0.00041369,2]
[354419507,1740480647751,-500.0,0.00041369,2]
[354419508,1740480647760,-1133.29,0.00041369,2]
[354419509,1740480647769,-500.0,0.00041369,2]
[354419510,1740480647778,-500.0,0.00041369,2]
[354419511,1740480647787,-392.37,0.00041369,2]
[354419512,1740480647797,-500.0,0.00041369,2]
[354419513,1740480647806,-500.0,0.00041369,2]
[354419514,1740480647815,-3362.8,0.00041369,2]
[354419515,1740480647824,-500.0,0.00041369,2]
[354419516,1740480647833,-353.23841507,0.00041369,2]
[354419518,1740480647842,-586.03,0.00041369,2]
[354419520,1740480647851,-500.0,0.00041369,2]
[354419522,1740480647863,-526.47,0.00041369,2]
[354419524,1740480647872,-188.71792046,0.00041369,2]
[354419526,1740480647881,-500.0,0.00041369,2]
[354419528,1740480647890,-500.0,0.00041369,2]
[354419530,1740480647899,-825.25,0.00041369,2]
[354419532,1740480647908,-500.0,0.00041369,2]
[354419534,1740480647917,-500.0,0.00041369,2]
[354419536,1740480647927,-500.0,0.00041369,2]
[354419538,1740480647936,-588.29,0.00041369,2]
[354419540,1740480647946,-2678.16,0.00041369,2]
[354419542,1740480647955,-500.0,0.00041369,2]
[354419544,1740480647964,-162.54,0.00041369,2]
[354419546,1740480647973,-510.36759537,0.00041369,2]
[354419548,1740480647982,-500.0,0.00041369,2]
[354419550,1740480647992,-483.75,0.00041369,2]
[354419552,1740480648000,-502.30746142,0.00041369,2]
[354419554,1740480648009,-397.85,0.00041369,2]
[354419556,1740480648023,-500.0,0.00041369,2]
[354419558,1740480648032,-1293.93,0.00041369,2]
[354419559,1740480648042,-500.0,0.00041369,2]
[354419562,1740480648053,-500.0,0.00041369,2]
[354419564,1740480648064,-500.0,0.00041369,2]
[354419566,1740480648074,-505.23191872,0.00041369,2]
[354419568,1740480648083,-500.0,0.00041369,2]
[354419569,1740480648094,-528.74,0.00041369,2]
[354419571,1740480648104,-500.0,0.00041369,2]
[354419573,1740480648115,-500.0,0.00041369,2]
[354419575,1740480648124,-500.0,0.00041369,2]
[354419577,1740480648135,-261.16,0.00041369,2]
[354419579,1740480648145,-500.0,0.00041369,2]
[354419581,1740480648154,-501.87799057,0.00041369,2]
[354419583,1740480648164,-500.0,0.00041369,2]
[354419585,1740480648174,-500.0,0.00041369,2]
[354419587,1740480648184,-500.0,0.00041369,2]
[354419589,1740480648193,-404.96892238,0.00041369,2]
[354419591,1740480648203,-500.0,0.00041369,2]
[354419593,1740480648213,-500.0,0.00041369,2]
[354419595,1740480648222,-500.0,0.00041369,2]
[354419597,1740480648232,-500.0,0.00041369,2]
[354419599,1740480648242,-500.0,0.00041369,2]
[354419601,1740480648251,-500.0,0.00041369,2]
[354419603,1740480648260,-507.74,0.00041369,2]
[354419605,1740480648270,-500.0,0.00041369,2]
[354419606,1740480648280,-500.0,0.00041369,2]
[354419608,1740480648289,-599.07316288,0.00041369,2]
[354419610,1740480648299,-500.0,0.00041369,2]
[354419612,1740480648309,-500.0,0.00041369,2]
[354419614,1740480648319,-500.0,0.00041369,2]
[354419616,1740480648329,-500.0,0.00041369,2]
[354419618,1740480648339,-635.07,0.00041369,2]
[354419620,1740480648348,-500.0,0.00041369,2]
[354419622,1740480648360,-86.29856795,0.00041369,2]
[354419625,1740480648375,-413.70143205,0.00041369,2]
[354419627,1740480648386,-500.0,0.00041369,2]
[354419629,1740480648396,-4.7831875,0.00041369,2]
[354419632,1740480648413,-495.2168125,0.00041369,2]
[354419634,1740480648423,-500.0,0.00041369,2]
[354419636,1740480648433,-500.0,0.00041369,2]
[354419638,1740480648442,-500.0,0.00041369,2]
[354419640,1740480648452,-500.0,0.00041369,2]
[354419642,1740480648461,-500.0,0.00041369,2]
[354419644,1740480648471,-500.0,0.00041369,2]
[354419646,1740480648480,-172.29,0.00041369,2]
[354419647,1740480648490,-500.0,0.00041369,2]
[354419649,1740480648500,-500.0,0.00041369,2]
[354419651,1740480648510,-510.5632751,0.00041369,2]
[354419654,1740480648521,-500.0,0.00041369,2]
[354419656,1740480648531,-500.0,0.00041369,2]
[354419657,1740480648540,-500.0,0.00041369,2]
[354419660,1740480648550,-500.0,0.00041369,2]
[354419661,1740480648559,-510.41,0.00041369,2]
[354419663,1740480648569,-500.0,0.00041369,2]
[354419665,1740480648578,-467.57,0.00041369,2]
[354419667,1740480648588,-207.68009022,0.00041369,2]
[354419693,1740480648835,-292.31990978,0.00041369,2]
[354419695,1740480648844,-500.0,0.00041369,2]
[354419697,1740480648855,-92.39599022,0.00041369,2]
[354419699,1740480648867,-407.60400978,0.00041369,2]
[354419701,1740480648877,-634.06,0.00041369,2]
[354419702,1740480648886,-500.0,0.00041369,2]
[354419703,1740480648896,-6547.08,0.00041369,2]
[354419704,1740480648905,-500.0,0.00041369,2]
[354419705,1740480648914,-246.09302012,0.00041369,2]
[354419710,1740480648983,-253.90697988,0.00041369,2]
[354419712,1740480648993,-500.0,0.00041369,2]
[354419714,1740480649003,-500.0,0.00041369,2]
[354419716,1740480649013,-500.0,0.00041369,2]
[354419718,1740480649023,-500.0,0.00041369,2]
[354419720,1740480649034,-500.0,0.00041369,2]
[354419722,1740480649044,-500.0,0.00041369,2]
[354419724,1740480649053,-427.36,0.00041369,2]
[354419726,1740480649063,-641.2,0.00041369,2]
[354419728,1740480649072,-500.0,0.00041369,2]
[354419729,1740480649081,-500.0,0.00041369,2]
[354419731,1740480649091,-500.0,0.00041369,2]
[354419733,1740480649100,-2445.04,0.00041369,2]
[354419735,1740480649113,-2895.07,0.00041369,2]
[354419737,1740480649122,-500.0,0.00041369,2]
[354419739,1740480649131,-1060.666566,0.00041369,14]
[354419741,1740480649141,-1060.666566,0.00041369,14]
[354419743,1740480649151,-500.0,0.00041369,2]
[354419745,1740480649162,-500.0,0.00041369,2]
[354419748,1740480649173,-500.0,0.00041369,2]
[354419750,1740480649183,-1060.666566,0.00041369,14]
[354419751,1740480649194,-1060.666566,0.00041369,14]
[354419753,1740480649206,-500.0,0.00041369,2]
[354419755,1740480649216,-500.0,0.00041369,2]
[354419757,1740480649228,-1863.52,0.00041369,2]
[354419759,1740480649239,-2602.88,0.00041369,2]
[354419761,1740480649248,-500.0,0.00041369,2]
[354419763,1740480649258,-1009.74,0.00041369,2]
[354419765,1740480649268,-610.92,0.00041369,2]
[354419767,1740480649279,-500.0,0.00041369,2]
[354419769,1740480649289,-500.0,0.00041369,2]
[354419771,1740480649300,-667.48,0.00041369,2]
[354419773,1740480649310,-283.55554334,0.00041369,2]
[354419775,1740480649320,-1420.26,0.00041369,2]
[354419777,1740480649331,-500.0,0.00041369,2]
[354419779,1740480649341,-500.0,0.00041369,2]
[354419781,1740480649351,-500.0,0.00041369,2]
[354419783,1740480649364,-503.37580324,0.00041369,2]
[354419785,1740480649375,-503.14939779,0.00041369,2]
[354419787,1740480649384,-500.0,0.00041369,2]
[354419789,1740480649394,-500.0,0.00041369,2]
[354419791,1740480649403,-500.0,0.00041369,2]
[354419793,1740480649413,-500.0,0.00041369,2]
[354419795,1740480649422,-500.0,0.00041369,2]
[354419797,1740480649432,-375.12,0.00041369,2]
[354419799,1740480649442,-500.0,0.00041369,2]
[354419801,1740480649451,-500.0,0.00041369,2]
[354419803,1740480649460,-620.32,0.00041369,2]
[354419805,1740480649469,-500.0,0.00041369,2]
[354419807,1740480649478,-488.67,0.00041369,2]
[354419809,1740480649487,-207.21,0.00041369,2]
[354419811,1740480649497,-500.0,0.00041369,2]
[354419813,1740480649506,-500.0,0.00041369,2]
[354419815,1740480649515,-571.7800927,0.00041369,2]
[354419817,1740480649525,-423.48856988,0.00041369,2]
[354419818,1740480649535,-572.43,0.00041369,2]
[354419820,1740480649544,-500.0,0.00041369,2]
[354419822,1740480649553,-500.0,0.00041369,2]
[354419824,1740480649563,-2817.34,0.00041369,2]
[354419827,1740480649573,-500.0,0.00041369,2]
[354419829,1740480649582,-500.0,0.00041369,2]
[354419830,1740480649591,-500.0,0.00041369,2]
[354419832,1740480649601,-500.0,0.00041369,2]
[354419834,1740480649614,-500.0,0.00041369,2]
[354419836,1740480649623,-500.0,0.00041369,2]
[354419839,1740480649633,-500.0,0.00041369,2]
[354419841,1740480649643,-500.0,0.00041369,2]
[354419842,1740480649653,-500.0,0.00041369,2]
[354419844,1740480649662,-500.0,0.00041369,2]
[354419846,1740480649671,-492.57,0.00041369,2]
[354419848,1740480649680,-500.0,0.00041369,2]
[354419850,1740480649689,-500.0,0.00041369,2]
[354419852,1740480649698,-505.8014326,0.00041369,2]
[354419854,1740480649707,-500.0,0.00041369,2]
[354419856,1740480649717,-500.0,0.00041369,2]
[354419858,1740480649726,-500.0,0.00041369,2]
[354419860,1740480649736,-500.0,0.00041369,2]
[354419862,1740480649745,-500.0,0.00041369,2]
[354419864,1740480649754,-500.0,0.00041369,2]
[354419866,1740480649764,-500.0,0.00041369,2]
[354419868,1740480649773,-500.0,0.00041369,2]
[354419870,1740480649782,-500.0,0.00041369,2]
[354419872,1740480649792,-500.0,0.00041369,2]
[354419874,1740480649801,-504.50571482,0.00041369,2]
[354419876,1740480649810,-1180.68,0.00041369,2]
[354419878,1740480649820,-500.0,0.00041369,2]
[354419880,1740480649829,-500.0,0.00041369,2]
[354419882,1740480649838,-500.0,0.00041369,2]
[354419884,1740480649847,-500.0,0.00041369,2]
[354419886,1740480649856,-500.0,0.00041369,2]
[354419888,1740480649865,-500.0,0.00041369,2]
[354419890,1740480649875,-500.0,0.00041369,2]
[354419892,1740480649884,-500.0,0.00041369,2]
[354419894,1740480649893,-500.0,0.00041369,2]
[354419896,1740480649903,-387.86340806,0.00041369,2]
[354419897,1740480649913,-700.48,0.00041369,2]
[354419898,1740480649922,-500.0,0.00041369,2]
[354419899,1740480649931,-500.0,0.00041369,2]
[354419900,1740480649940,-500.0,0.00041369,2]
[354419901,1740480649949,-500.0,0.00041369,2]
[354419902,1740480649958,-500.0,0.00041369,2]
[354419903,1740480649967,-500.0,0.00041369,2]
[354419905,1740480649976,-508.40431575,0.00041369,2]
[354419907,1740480649985,-500.0,0.00041369,2]
[354419909,1740480649994,-500.0,0.00041369,2]
[354419911,1740480650003,-281.8,0.00041369,2]
[354419913,1740480650013,-500.0,0.00041369,2]
[354419915,1740480650027,-1834.55,0.00041369,2]
[354419917,1740480650036,-500.0,0.00041369,2]
[354419919,1740480650045,-500.0,0.00041369,2]
[354419921,1740480650054,-504.4846262,0.00041369,120]
[354419923,1740480650064,-500.0,0.00041369,2]
[354419924,1740480650073,-502.44331189,0.00041369,2]
[354419926,1740480650083,-501.55862855,0.00041369,2]
[354419928,1740480650094,-500.0,0.00041369,2]
[354419930,1740480650104,-500.0,0.00041369,2]
[354419932,1740480650113,-500.0,0.00041369,2]
[354419934,1740480650122,-500.0,0.00041369,2]
[354419936,1740480650132,-500.0,0.00041369,2]
[354419938,1740480650142,-1618.21,0.00041369,2]
[354419940,1740480650151,-500.0,0.00041369,2]
[354419942,1740480650161,-500.0,0.00041369,2]
[354419944,1740480650170,-234.14816543,0.0004139,3]
[354419946,1740480650180,-1000.0,0.000414,7]
[354419948,1740480650189,-200.0,0.00041411,7]
[354419950,1740480650199,-20675.24171295,0.0004148,15]
[354419952,1740480650208,-8032.08769766,0.00041489,15]
[354419954,1740480650216,-248.93,0.00041499,2]
[354419956,1740480650225,-2580.53,0.00041499,2]
[354419958,1740480650235,-82988.53,0.000415,60]
[354419960,1740480650244,-1060.666566,0.000415,14]
[354419962,1740480650253,-1060.666566,0.000415,14]
[354419964,1740480650262,-191.8894434,0.0004155,120]
[354419966,1740480650271,-999.0,0.00041642,120]
[354419968,1740480650280,-2580.53,0.00041642,2]
[354419970,1740480650290,-189.57498477,0.00041643,71]
[354419972,1740480650299,-79772.59371849,0.00041643,61]
[354419974,1740480650309,-500.0,0.00041643,2]
[354419976,1740480650318,-500.0,0.00041643,2]
[354419978,1740480650327,-779.37,0.00041643,2]
[354419980,1740480650336,-500.0,0.00041643,2]
[354419982,1740480650345,-500.0,0.00041643,2]
[354419984,1740480650354,-500.0,0.00041643,2]
[354419986,1740480650365,-500.0,0.00041643,2]
[354419987,1740480650374,-500.0,0.00041643,2]
[354419989,1740480650384,-502.55428372,0.00041643,2]
[354419991,1740480650393,-503.70957943,0.00041643,2]
[354419993,1740480650403,-630.55261257,0.00041643,2]
[354419995,1740480650412,-460.0,0.00041643,2]
[354419997,1740480650421,-501.79115842,0.00041643,2]
[354419999,1740480650430,-500.0,0.00041643,2]
[354420001,1740480650439,-500.0,0.00041643,2]
[354420003,1740480650448,-500.0,0.00041643,2]
[354420005,1740480650458,-500.0,0.00041643,2]
[354420007,1740480650467,-500.0,0.00041643,2]
[354420009,1740480650475,-500.0,0.00041643,2]
[354420011,1740480650485,-490.0,0.00041643,2]
[354420013,1740480650494,-500.0,0.00041643,2]
[354420015,1740480650503,-500.0,0.00041643,2]
[354420017,1740480650512,-500.0,0.00041643,2]
[354420019,1740480650522,-500.0,0.00041643,2]
[354420021,1740480650531,-501.7413288,0.00041643,2]
[354420023,1740480650540,-416.03934463,0.00041643,2]
[354420025,1740480650549,-554.94775193,0.00041643,2]
[354420027,1740480650558,-500.0,0.00041643,2]
[354420029,1740480650567,-500.0,0.00041643,2]
[354420030,1740480650576,-503.18356569,0.00041643,2]
[354420032,1740480650585,-500.0,0.00041643,2]
[354420034,1740480650594,-500.0,0.00041643,2]
[354420036,1740480650603,-500.0,0.00041643,2]
[354420038,1740480650614,-622.06,0.00041643,2]
[354420040,1740480650623,-229.532329,0.00041643,2]
[354420042,1740480650633,-500.0,0.00041643,2]
[354420044,1740480650642,-500.0,0.00041643,2]
[354420046,1740480650651,-151.442006,0.00041643,2]
[354420048,1740480650660,-500.0,0.00041643,2]
[354420050,1740480650669,-273.86433193,0.00041643,2]
[354420052,1740480650679,-570.51,0.00041643,2]
[354420054,1740480650688,-1943.378591,0.00041643,2]
[354420056,1740480650697,-500.0,0.00041643,2]
[354420058,1740480650706,-551.7,0.00041643,2]
[354420060,1740480650716,-500.0,0.00041643,2]
[354420062,1740480650724,-4784.114852,0.00041643,2]
[354420064,1740480650734,-500.0,0.00041643,2]
[354420066,1740480650743,-642.07,0.00041643,2]
[354420068,1740480650752,-500.0,0.00041643,2]
[354420070,1740480650761,-505.18942687,0.00041643,2]
[354420072,1740480650770,-500.0,0.00041643,2]
[354420074,1740480650780,-500.0,0.00041643,2]
[354420076,1740480650789,-500.0,0.00041643,2]
[354420078,1740480650798,-500.0,0.00041643,2]
[354420080,1740480650807,-500.0,0.00041643,2]
[354420081,1740480650816,-177.26976445,0.00041643,2]
[354420082,1740480650825,-517.9,0.00041643,2]
[354420083,1740480650834,-500.0,0.00041643,2]
[354420084,1740480650843,-1669.85,0.00041643,2]
[354420085,1740480650852,-532.38892779,0.00041643,2]
[354420086,1740480650864,-500.0,0.00041643,2]
[354420087,1740480650873,-500.0,0.00041643,2]
[354420089,1740480650882,-500.0,0.00041643,2]
[354420091,1740480650892,-500.0,0.00041643,2]
[354420093,1740480650901,-500.0,0.00041643,2]
[354420095,1740480650910,-500.0,0.00041643,2]
[354420097,1740480650919,-500.0,0.00041643,2]
[354420099,1740480650928,-500.0,0.00041643,2]
[354420101,1740480650937,-500.0,0.00041643,2]
[354420103,1740480650947,-412.00348835,0.00041643,2]
[354420105,1740480650956,-500.0,0.00041643,2]
[354420107,1740480650965,-500.0,0.00041643,2]
[354420109,1740480650976,-500.0,0.00041643,2]
[354420111,1740480650985,-500.0,0.00041643,2]
[354420113,1740480650994,-500.0,0.00041643,2]
[354420115,1740480651003,-500.0,0.00041643,2]
[354420117,1740480651013,-500.0,0.00041643,2]
[354420119,1740480651026,-3276.64,0.00041643,2]
[354420121,1740480651036,-500.0,0.00041643,2]
[354420123,1740480651045,-573.17,0.00041643,2]
[354420125,1740480651055,-500.0,0.00041643,2]
[354420127,1740480651064,-500.0,0.00041643,2]
[354420128,1740480651073,-500.0,0.00041643,2]
[354420143,1740480651201,-722.4,0.00041643,2]
[354420145,1740480651211,-500.0,0.00041643,2]
[354420147,1740480651221,-597.08,0.00041643,2]
[354420149,1740480651230,-500.86,0.00041643,2]
[354420151,1740480651239,-505.81,0.00041643,2]
[354420153,1740480651249,-500.0,0.00041643,2]
[354420155,1740480651258,-158.0,0.00041643,2]
[354420157,1740480651267,-884.58,0.00041643,2]
[354420158,1740480651276,-175.32,0.00041643,2]
[354420160,1740480651286,-500.0,0.00041643,2]
[354420161,1740480651295,-500.0,0.00041643,2]
[354420163,1740480651304,-372.08,0.00041643,2]
[354420164,1740480651314,-436.00015,0.00041643,2]
[354420165,1740480651323,-500.0,0.00041643,2]
[354420167,1740480651333,-500.0,0.00041643,2]
[354420168,1740480651342,-500.0,0.00041643,2]
[354420170,1740480651352,-500.0,0.00041643,7]
[354420171,1740480651363,-971.82,0.00041643,2]
[354420173,1740480651372,-500.0,0.00041643,2]
[354420174,1740480651381,-500.0,0.00041643,2]
[354420176,1740480651390,-500.0,0.00041643,2]
[354420177,1740480651399,-500.0,0.00041643,2]
[354420179,1740480651409,-500.0,0.00041643,2]
[354420180,1740480651418,-500.0,0.00041643,2]
[354420182,1740480651427,-500.0,0.00041643,2]
[354420183,1740480651437,-501.82,0.00041643,2]
[354420185,1740480651446,-500.0,0.00041643,2]
[354420186,1740480651455,-560.99,0.00041643,2]
[354420188,1740480651464,-500.0,0.00041643,2]
[354420189,1740480651474,-222.19,0.00041643,2]
[354420191,1740480651483,-579.15,0.00041643,2]
[354420192,1740480651492,-500.0,0.00041643,2]
[354420194,1740480651502,-500.0,0.00041643,2]
[354420195,1740480651511,-549.91,0.00041643,2]
[354420197,1740480651520,-500.0,0.00041643,2]
[354420198,1740480651529,-472.82,0.00041643,2]
[354420200,1740480651539,-473.44,0.00041643,2]
[354420202,1740480651548,-284.75,0.00041643,2]
[354420203,1740480651557,-455.44,0.00041643,2]
[354420205,1740480651566,-262.24,0.00041643,2]
[354420206,1740480651575,-500.0,0.00041643,2]
[354420208,1740480651584,-500.0,0.00041643,2]
[354420209,1740480651593,-500.0,0.00041643,2]
[354420211,1740480651603,-500.0,0.00041643,2]
[354420213,1740480651614,-171.58685972,0.00041643,2]
[354420214,1740480651623,-460.87242789,0.00041643,2]
[354420216,1740480651632,-500.0,0.00041643,2]
[354420217,1740480651641,-500.0,0.00041643,2]
[354420219,1740480651651,-500.0,0.00041643,2]
[354420221,1740480651660,-500.0,0.00041643,2]
[354420222,1740480651669,-500.0,0.00041643,2]
[354420224,1740480651679,-500.0,0.00041643,2]
[354420226,1740480651688,-500.0,0.00041643,2]
[354420229,1740480651698,-500.0,0.00041643,2]
[354420230,1740480651707,-500.0,0.00041643,2]
[354420233,1740480651717,-500.0,0.00041643,2]
[354420235,1740480651727,-500.0,0.00041643,2]
[354420237,1740480651737,-500.0,0.00041643,2]
[354420239,1740480651746,-500.0,0.00041643,2]
[354420240,1740480651756,-500.0,0.00041643,2]
[354420242,1740480651766,-500.0,0.00041643,2]
[354420244,1740480651775,-500.0,0.00041643,2]
[354420246,1740480651785,-503.65032934,0.00041643,2]
[354420248,1740480651794,-500.0,0.00041643,2]
[354420249,1740480651804,-500.0,0.00041643,2]